[Event "78th Armenian Chess Ch"]
[Site "Yerevan"]
[Date "2017.08.12"]
[Round "4"]
[White "Kalashian, David"]
[Black "Torosyan, Norayr"]
[Result "1/2-1/2"]
[ECO "D51"]
[WhiteElo "2389"]
[BlackElo "2350"]
[Annotator "ChessBase"]
[PlyCount "100"]
[EventDate "2017.??.??"]
[EventCountry "ARM"]
[SourceTitle "playchess.com"]
[Source "ChessBase"]
[SourceQuality "1"]
[TimeControl "40/5400+30:1800+30"]

1. d4 {[%emt 0:00:00]} d5 {[%emt 0:00:25]} 2. Nf3 {[%emt 0:00:00]} Nf6 {[%emt 0:00:04]} 3. c4 {[%emt 0:00:00]} e6 {[%emt 0:00:11]} 4. Nc3 {[%emt 0:00:17]} Nbd7 {[%emt 0:00:41]} 5. Bg5 {[%emt 0:04:22]} h6 {[%emt 0:00:41]} 6. Bxf6 {[%emt 0:00:58]} Nxf6 {[%emt 0:00:51]} 7. e3 {[%emt 0:00:15]} c6 {[%emt 0:08:09]} 8. Ne5 {[%emt 0:01:55]} Be7 {[%emt 0:02:58]} 9. Bd3 {[%emt 0:02:56]} O-O {[%emt 0:00:17]} 10. c5 {[%emt 0:02:28]} Nd7 {[%emt 0:04:02]} 11. Nxd7 {[%emt 0:08:17]} Qxd7 {[%emt 0:04:16]} 12. f4 {[%emt 0:00:09]} b6 {[%emt 0:04:37]} 13. b4 {[%emt 0:00:37]} bxc5 {[%emt 0:12:06]} 14. bxc5 {[%emt 0:00:31]} e5 {[%emt 0:00:05]} 15. fxe5 {[%emt 0:01:23]} f6 {[%emt 0:00:42]} 16. exf6 {[%emt 0:21:37]} Rxf6 {[%emt 0:00:32]} 17. Rf1 {[%emt 0:00:13]} Qc7 {[%emt 0:11:55]} 18. Qh5 {[%emt 0:02:40]} Be6 {[%emt 0:08:14]} 19. Rxf6 {[%emt 0:01:37]} Bxf6 {[%emt 0:00:06]} 20. Kd2 {[%emt 0:00:23]} Bf7 {[%emt 0:12:02]} 21. Qf5 {[%emt 0:16:37]} Qxh2 {[%emt 0:01:06]} 22. Rb1 {[%emt 0:02:46]} Qc7 {[%emt 0:06:42]} 23. Rf1 {[%emt 0:03:12]} Re8 {[%emt 0:01:48]} 24. Qh7+ {[%emt 0:09:17]} Kf8 {[%emt 0:00:04]} 25. Bg6 {[%emt 0:03:12]} Re6 {[%emt 0:02:47]} 26. Bf5 {[%emt 0:09:40]} Re8 {[%emt 0:03:32]} 27. Bg6 {[%emt 0:00:02]} Re6 {[%emt 0:00:05]} 28. Bf5 {[%emt 0:00:10]} Re8 {[%emt 0:00:05]} 29. Bg6 {[%emt 0:00:11]} Re6 {[%emt 0:00:06]} 30. Bxf7 {[%emt 0:05:55]} Kxf7 {[%emt 0:01:08]} 31. Rb1 {[%emt 0:00:10]} Re7 {[%emt 0:05:39]} 32. Qf5 {[%emt 0:01:21]} Kg8 {[%emt 0:04:20]} 33. Rb3 {[%emt 0:00:18]} Bg5 {[%emt 0:03:50]} 34. Ne2 {[%emt 0:00:11]} Bxe3+ {[%emt 0:01:05]} 35. Rxe3 {[%emt 0:01:24]} Qa5+ {[%emt 0:00:00]} 36. Rc3 {[%emt 0:00:49]} Rxe2+ {[%emt 0:00:03]} 37. Kxe2 {[%emt 0:00:05]} Qxc3 {[%emt 0:00:02]} 38. Qe6+ {[%emt 0:00:34]} Kh7 {[%emt 0:00:27]} 39. Qf5+ {[%emt 0:00:02]} Kg8 {[%emt 0:00:10]} 40. Qc8+ {[%emt 0:00:00]} Kh7 {[%emt 0:00:05]} 41. Qxc6 {[%emt 0:02:42]} Qc2+ {[%emt 0:00:57]} 42. Ke1 {[%emt 0:01:40]} Qe4+ {[%emt 0:01:16]} 43. Kf1 {[%emt 0:02:40]} Qd3+ {[%emt 0:00:06]} 44. Ke1 {[%emt 0:00:06]} Qxd4 {[%emt 0:11:19]} 45. Qb5 {[%emt 0:01:44]} a6 {[%emt 0:01:18]} 46. Qb1+ {[%emt 0:01:31]} Kg8 {[%emt 0:00:08]} 47. Qb8+ {[%emt 0:00:12]} Kh7 {[%emt 0:00:53]} 48. Qb1+ {[%emt 0:00:08]} Kg8 {[%emt 0:00:04]} 49. Qb8+ {[%emt 0:00:05]} Kh7 {[%emt 0:01:11]} 50. Qb1+ {[%emt 0:00:21]} Kg8 1/2-1/2

[Event "78th Armenian Chess Ch"]
[Site "Yerevan"]
[Date "2017.08.12"]
[Round "4"]
[White "Manukyan, Sargis A."]
[Black "Danielyan, Vahe"]
[Result "1-0"]
[ECO "E60"]
[WhiteElo "2233"]
[BlackElo "2344"]
[Annotator "NA"]
[PlyCount "119"]
[EventDate "2017.??.??"]
[EventCountry "ARM"]
[SourceTitle "playchess.com"]
[Source "ChessBase"]
[SourceQuality "1"]
[TimeControl "40/5400+30:1800+30"]

{[%evp 8,108,19,32767,32767,32767,32767,32767,32767,32767,61,27,57,57,29,16,20,0,15,0,14,-6,25,38,61,29,65,58,62,67,65,84,77,0,0,1,12,23,20,-30,-7,-16,20,0,7,33,32767,32767,41,41,69,32767,32767,97,135,124,142,122,32767,117,135,133,116,75,85,94,116,118,129,112,145,109,129,136,168,32767,156,32767,32767,162,215,32767,32767,32767,32767,32767,32767,32767,32767,32767,32767,544,488,577,546,32767,32767,32767,551,32767,709,609,542]} 1. d4 {[%emt 0:00:00]} Nf6 {[%emt 0:00:06]} 2. c4 {[%emt 0:00:00]} c5 {[%emt 0:00:03]} 3. d5 {[%emt 0:00:00]} b5 {[%emt 0:00:04]} 4. cxb5 {[%emt 0:00:00]} a6 {[%emt 0:00:02]} 5. bxa6 {[%emt 0:00:00]} g6 {[%emt 0:00:04]} 6. Nc3 {[%emt 0:00:00]} Bg7 {[%emt 0:00:03]} 7. Nf3 {[%emt 0:00:04]} O-O {[%emt 0:00:06]} 8. g3 {[%emt 0:00:03]} d6 {[%emt 0:00:05]} 9. Bg2 {[%emt 0:00:10]} Nxa6 {[%emt 0:00:03]} 10. O-O {[%emt 0:00:07]} Bf5 {[%emt 0:00:02] E60: King's Indian: Unusual lines and Fianchetto Variation without Nc3} 11. Nh4 {[%emt 0:00:33]} Bd7 {[%emt 0:00:06]} (11... Bc8 12. Rb1 Qa5 13. Bd2 Nc7 14. a3 Qb6 15. h3 Nb5 16. Nxb5 Qxb5 17. Bc3 Ba6 18. Re1 {½-½ (58) Sasikiran,K (2682)-Ding,L (2755) Hyderabad 2015}) 12. Rb1 {[%emt 0:00:51]} Qa5 {[%emt 0:02:54] LiveBook: 4 Games} 13. Bd2 {[%emt 0:00:51]} Rfb8 {[%emt 0:00:08]} 14. b3 {[%emt 0:02:57]} Nc7 {[%emt 0:02:14]} (14... c4 $5) 15. a4 {[%emt 0:01:30]} Qa6 {[%emt 0:00:07]} 16. Qc2 {[%emt 0:02:20]} Qb7 $146 {[%emt 0:01:58]} 17. e4 {[%emt 0:01:25]} Na6 {[%emt 0:00:14]} 18. Na2 {[%emt 0:00:47]} Nc7 {[%emt 0:08:49]} 19. Bc3 {[%emt 0:12:10]} Qa7 {[%emt 0:01:18]} 20. Ba1 {[%emt 0:03:41]} (20. e5 $16 Ng4 {[#]} 21. e6 $1 {[%mdl 512]} fxe6 22. dxe6 Nxe6 23. Bd5 (23. Bxa8 Rxa8 24. Rbe1 Ne5 $14)) 20... Nb5 {[%emt 0:03:53]} 21. Bb2 {[%emt 0:02:34]} Nd4 {[%emt 0:01:11]} 22. Bxd4 $1 {[%emt 0:00:55]} cxd4 {[%emt 0:00:04]} 23. Nc1 {[%emt 0:02:39]} Rc8 {[%emt 0:05:57]} 24. Qd2 {[%emt 0:01:00]} Rab8 {[%emt 0:00:49]} (24... e5 $15) 25. Ne2 {[%emt 0:03:31]} Ng4 {[%emt 0:06:37]} (25... d3 $5 26. Qxd3 Rb4 $14) 26. Nf3 {[%emt 0:04:22]} Bxa4 {[%emt 0:05:56]} 27. Nfxd4 {[%emt 0:11:10]} Bd7 {[%emt 0:01:47]} (27... Bb5 $5) 28. h3 {[%emt 0:00:40]} Nf6 {[%emt 0:02:19]} 29. b4 {[%emt 0:01:09]} Rc4 {[%emt 0:02:20] [#]} 30. Rfc1 {[%emt 0:03:41]} (30. e5 $1 $18 {[%mdl 512]} dxe5 31. Nc6 Bxc6 32. dxc6) 30... Nxe4 {[%emt 0:04:10]} 31. Bxe4 {[%emt 0:00:30]} Rxd4 {[%emt 0:00:05]} 32. Nxd4 {[%emt 0:00:24]} Bxd4 {[%emt 0:00:09]} 33. Kg2 {[%emt 0:01:22]} Kg7 {[%emt 0:00:17]} 34. Rc4 {[%emt 0:04:10]} Bf6 {[%emt 0:00:17]} 35. Qc2 {[%emt 0:01:15]} Bb5 {[%emt 0:00:50]} 36. Rc8 {[%emt 0:01:38]} Rb7 {[%emt 0:00:48]} 37. Qd2 {[%emt 0:04:31]} Qb6 {[%emt 0:00:08]} 38. h4 {[%emt 0:03:58]} Bd7 {[%emt 0:00:11]} 39. Ra8 {[%emt 0:00:56]} h5 {[%emt 0:00:25]} 40. Bf3 {[%emt 0:00:00]} Rc7 {[%emt 0:00:10]} (40... Bf5 $16 41. Rb3 Qd4 42. Qxd4 Bxd4) 41. Rb3 {[%emt 0:13:07]} Bf5 {[%emt 0:00:56]} (41... Rc4 $142) 42. Ra2 {[%emt 0:00:52]} Qb5 {[%emt 0:00:08] [#]} 43. Qe2 $1 {[%emt 0:02:48]} Qb6 {[%emt 0:12:13]} (43... Qxe2 $16 44. Rxe2 (44. Bxe2 Bc2 $16) 44... Bd4) 44. Ra6 {[%emt 0:00:21]} Qd4 {[%emt 0:01:23]} 45. Rc6 {[%emt 0:00:45]} Rxc6 {[%emt 0:06:18]} 46. dxc6 {[%emt 0:00:14]} e5 {[%emt 0:00:01]} 47. Qe3 {[%emt 0:04:18]} Qc4 {[%emt 0:00:01]} 48. b5 {[%emt 0:00:47]} d5 {[%emt 0:00:55]} 49. Rb2 {[%emt 0:13:35]} d4 {[%emt 0:06:32]} 50. Qb3 {[%emt 0:00:45]} Qc1 {[%emt 0:00:05]} 51. b6 {[%emt 0:04:34]} e4 {[%emt 0:03:03]} 52. Bd1 {[%emt 0:00:39]} e3 {[%emt 0:01:42]} 53. b7 {[%emt 0:01:56]} Be5 {[%emt 0:05:32]} 54. b8=Q $18 {[%emt 0:02:51]} Bxb8 {[%emt 0:01:18]} 55. Qxb8 {[%emt 0:00:09]} Qxd1 {[%emt 0:09:17]} 56. Qe5+ {[%emt 0:00:44]} Kh7 {[%emt 0:00:01]} 57. Rb8 {[%emt 0:03:01]} Be4+ {[%emt 0:00:09]} 58. Qxe4 {[%emt 0:00:20]} e2 {[%emt 0:00:15]} 59. Qf4 {[%emt 0:01:56]} e1=N+ {[%emt 0:03:28]} 60. Kh3 {[%emt 0:00:10]} 1-0

[Event "78th Armenian Chess Ch"]
[Site "Yerevan"]
[Date "2017.08.22"]
[Round "13"]
[White "Danielyan, Vahe"]
[Black "Mkrtchyan, Eduard"]
[Result "1-0"]
[ECO "B84"]
[WhiteElo "2344"]
[BlackElo "2203"]
[Annotator "NA"]
[PlyCount "63"]
[EventDate "2017.??.??"]
[EventCountry "ARM"]
[SourceTitle "playchess.com"]
[Source "ChessBase"]
[SourceQuality "1"]
[TimeControl "40/5400+30:1800+30"]

{[%evp 19,51,75,139,63,32767,75,124,32767,32767,32767,141,130,32767,154,262,287,312,353,375,313,620,664,834,885,846,920,887,572,550,592,551,620,584,591]} 1. e4 {[%emt 0:00:00]} c5 {[%emt 0:00:05]} 2. Nc3 {[%emt 0:00:00]} e6 {[%emt 0:02:00]} 3. Nf3 {[%emt 0:00:00]} a6 {[%emt 0:00:09]} 4. d4 {[%emt 0:00:19]} cxd4 {[%emt 0:00:05]} 5. Nxd4 {[%emt 0:00:04]} d6 {[%emt 0:03:26]} 6. Be2 {[%emt 0:00:35]} Nf6 {[%emt 0:00:10]} 7. g4 {[%emt 0:00:04]} h6 {[%emt 0:01:15]} 8. h4 {[%emt 0:00:20] B84: Sicilian Scheveningen: 6 Be2 a6, lines without early Be3} b5 {[%emt 0:03:27]} (8... Nc6 9. Be3 d5 10. exd5 Nxd5 11. Nxd5 Qxd5 12. Bf3 Qa5+ 13. c3 Bd7 14. Qb3 Qc7 15. Qc4 Rc8 {1-0 (29) Plat,V (2503)-Plischki,S (2384) Olomouc 2016}) 9. Bf3 {[%emt 0:01:42]} e5 {[%emt 0:08:25]} 10. Nf5 {[%emt 0:03:37]} g6 $146 {[%emt 0:01:54] [#]} ({Predecessor:} 10... b4 11. Nd5 Nxd5 12. Qxd5 Ra7 13. Be3 Be6 14. Qd2 Rd7 15. Rd1 h5 16. Qxb4 hxg4 17. Bxg4 {1-0 (29) Hoang,T (2267)-Laciner,K (2179) Budapest 2005}) 11. Ng3 {[%emt 0:03:08]} (11. Nxh6 $1 $16 Bxh6 12. Bxh6) 11... b4 {[%emt 0:03:25]} 12. Nd5 {[%emt 0:00:40]} Nc6 {[%emt 0:00:27]} 13. Be3 {[%emt 0:01:18]} Nxd5 {[%emt 0:05:51]} 14. exd5 {[%emt 0:00:11]} Na5 {[%emt 0:01:02]} (14... Ne7 $142) 15. Qd3 {[%emt 0:01:18]} Bd7 {[%emt 0:00:53]} 16. h5 {[%emt 0:05:06]} Qf6 {[%emt 0:06:28]} (16... g5 $16 {was necessary.}) 17. Be2 {[%emt 0:02:54]} Bb5 {[%emt 0:02:35]} 18. Qe4 {[%emt 0:00:07]} Bxe2 {[%emt 0:00:29]} 19. Kxe2 {[%emt 0:00:06]} ({Not} 19. Nxe2 Rc8 $16) 19... Be7 $2 {[%emt 0:07:48]} (19... Rc8 20. Qxb4 Nc4) 20. Qxb4 {[%emt 0:00:55]} Bd8 21. Ne4 {[%emt 0:00:32]} Qe7 {[%emt 0:04:55]} 22. hxg6 {[%emt 0:00:05]} fxg6 {[%emt 0:01:16]} 23. Qxd6 {[%emt 0:02:32]} Qxd6 {[%emt 0:01:33]} 24. Nxd6+ {[%emt 0:00:06]} Ke7 {[%emt 0:00:22]} 25. Ne4 {[%emt 0:00:06]} Rc8 $18 {[%emt 0:00:09]} 26. c3 {[%emt 0:00:41]} h5 {[%emt 0:00:50]} 27. gxh5 {[%emt 0:00:14]} gxh5 {[%emt 0:00:21]} 28. Rag1 {[%emt 0:00:05]} Nc4 {[%emt 0:00:54]} 29. Bc5+ {[%emt 0:02:03]} Rxc5 {[%emt 0:01:44]} 30. Nxc5 {[%emt 0:00:08]} Kd6 {[%emt 0:00:01]} 31. Nb7+ {[%emt 0:00:11]} Kxd5 {[%emt 0:00:10]} 32. Rd1+ {[%emt 0:00:14]} 1-0